bitfinex-derivatives/quotes_SOLF0:USTF0_20240923
["timestamp","ask_amount","ask_price","bid_price","bid_amount"]
[1727099512206,2.8885,143.58,143.52,3.4841]
[1727099512402,3.4835,143.56,143.53,3.484]
[1727099512603,2.8885,143.58,143.53,3.484]
[1727099513501,3.4833,143.57,143.54,3.4838]
[1727099514008,3.4833,143.56,143.53,3.484]
[1727099514601,3.4836,143.55,143.53,3.484]
[1727099515009,2.8885,143.58,143.47,2.831]
[1727099515310,3.4837,143.55,143.47,2.831]
[1727099515497,21.5985,143.58,143.53,3.4839]
[1727099515703,3.4835,143.56,143.53,3.4839]
[1727099516007,2.8885,143.58,143.47,21.541]
[1727099516399,3.4832,143.57,143.54,3.4837]
[1727099517705,18.71,143.56,143.46,1.4618]
[1727099518006,18.71,143.51,143.42,2.8409]
[1727099518406,1.433,143.5,143.42,2.8409]
[1727099518606,1.433,143.5,143.47,3.4855]
[1727099518806,1.433,143.5,143.42,2.8409]
[1727099519311,1.433,143.5,143.42,21.5509]
[1727099519511,18.71,143.54,143.42,21.5509]
[1727099519711,18.71,143.56,143.5,3.4847]
[1727099520110,18.71,143.56,143.44,18.71]
[1727099520111,3.484,143.54,143.44,18.71]
[1727099520311,18.71,143.56,143.44,18.71]
[1727099520612,3.4842,143.53,143.44,18.71]
[1727099520808,18.71,143.56,143.51,3.4845]
[1727099521114,1.433,143.57,143.46,18.71]
[1727099521309,3.4834,143.56,143.47,1.453]
[1727099521507,1.433,143.57,143.47,1.453]
[1727099522101,1.433,143.57,143.49,18.71]
[1727099522308,20.104,143.61,143.49,18.71]
[1727099522515,20.104,143.61,143.5,2.6722]
[1727099522715,20.104,143.61,143.47,1.453]
[1727099522716,18.71,143.58,143.47,1.453]
[1727099523012,18.71,143.56,143.45,1.3408]
[1727099523201,18.71,143.53,143.4,21.4489]
[1727099523407,18.71,143.51,143.41,1.3408]
[1727099523920,2.6666,143.5,143.41,1.3408]
[1727099524105,2.6666,143.5,143.44,3.486]
[1727099524307,18.71,143.49,143.35,18.71]
[1727099524510,2.6666,143.5,143.35,18.71]
[1727099524511,18.71,143.46,143.35,18.71]
[1727099525010,22.1958,143.46,143.35,18.71]
[1727099525214,18.71,143.46,143.35,18.71]
[1727099525808,18.71,143.46,143.38,3.4876]
[1727099526009,18.71,143.41,143.28,22.23361057]
[1727099526311,18.71,143.41,143.33,3.4887]
[1727099526504,1.3401,143.4,143.3,18.71]
[1727099526708,1.3401,143.4,143.31,1.3789]
[1727099526905,1.3265,143.42,143.32,18.71]
[1727099527214,1.3936,143.45,143.35,18.71]
[1727099527515,1.3936,143.45,143.4,3.4872]
[1727099527713,4.8796,143.45,143.4,3.4872]
[1727099527912,1.3936,143.45,143.36,2.7686]
[1727099528715,1.3936,143.45,143.41,3.4868]
[1727099529111,1.3936,143.45,143.39,3.4872]
[1727099529518,1.3936,143.45,143.36,2.7686]
[1727099531015,2.803,143.51,143.37,18.71]
[1727099531218,1.3224,143.5,143.4,18.71]
[1727099531514,4.8072,143.5,143.4,18.71]
[1727099531715,2.803,143.51,143.4,18.71]
[1727099531912,2.803,143.51,143.42,18.71]
[1727099532515,18.71,143.54,143.42,18.71]
[1727099532719,21.5739,143.54,143.43,2.8197]
[1727099533212,21.5739,143.54,143.46,3.4855]
[1727099533213,3.4846,143.51,143.46,3.4855]
[1727099533413,21.5739,143.54,143.46,3.4855]
[1727099533813,21.5739,143.54,143.43,2.8197]
[1727099534215,18.71,143.52,143.43,2.8197]
[1727099534414,18.71,143.52,143.41,1.4005]
[1727099534615,18.71,143.49,143.37,2.7665]
[1727099534816,1.4303,143.48,143.37,2.7665]
[1727099535409,4.9157,143.48,143.38,18.71]
[1727099535613,1.4303,143.48,143.38,18.71]
[1727099535917,4.9156,143.48,143.44,3.4861]
[1727099537010,4.97019921,143.48,143.38,18.71]
[1727099537212,1.4331,143.47,143.38,18.71]
[1727099537416,1.4331,143.47,143.45,3.4859]
[1727099537619,1.4303,143.48,143.45,3.4859]
[1727099537820,1.4331,143.53,143.42,18.71]
[1727099538317,1.3988,143.54,143.45,18.71]
[1727099539923,1.4331,143.56,143.47,18.71]
[1727099540324,20.1431,143.56,143.44,21.4207]
[1727099540519,23.6266,143.56,143.52,3.4843]
[1727099540722,1.4331,143.56,143.46,18.71]
[1727099541421,4.9166,143.56,143.52,3.4841]
[1727099542018,3.4839,143.54,143.46,18.71]
[1727099542229,3.4839,143.54,143.44,21.4207]
[1727099542427,1.4331,143.56,143.44,21.4207]
[1727099542623,3.4837,143.55,143.51,3.4845]
[1727099542818,3.4837,143.55,143.44,21.4207]
[1727099543129,3.4837,143.55,143.51,3.4844]
[1727099543322,3.484,143.54,143.44,21.4207]
[1727099543524,1.4331,143.56,143.44,21.4207]
[1727099543920,3.484,143.54,143.44,21.4207]
[1727099544721,3.484,143.54,143.5,3.4847]
[1727099545216,20.1431,143.56,143.44,21.4207]
[1727099545422,1.4331,143.56,143.46,18.71]
[1727099545628,4.9166,143.56,143.46,18.71]
[1727099545833,18.71,143.61,143.48,18.71]
[1727099546027,1.4539,143.6,143.48,18.71]
[1727099546434,3.4831,143.57,143.54,3.4837]
[1727099546635,3.4831,143.57,143.48,18.71]
[1727099546824,1.4539,143.6,143.48,18.71]
[1727099547131,3.4832,143.57,143.53,3.4839]
[1727099547727,3.4832,143.57,143.54,3.4838]
[1727099547939,3.4832,143.57,143.48,18.71]
[1727099548327,3.4832,143.57,143.45,6.972]
[1727099548328,18.71,143.58,143.46,18.71]
[1727099548528,1.4539,143.6,143.45,6.972]
[1727099548529,18.71,143.56,143.45,6.972]
[1727099548827,3.4837,143.55,143.45,6.972]
[1727099549031,18.71,143.56,143.46,18.71]
[1727099549429,22.1935,143.56,143.52,3.4841]
[1727099549630,18.71,143.56,143.44,2.7107]
[1727099549930,3.4839,143.54,143.51,3.4845]
[1727099550236,18.71,143.58,143.46,18.71]
[1727099550429,3.4836,143.55,143.46,18.71]
[1727099551245,18.71,143.58,143.46,18.71]
[1727099551440,18.71,143.56,143.44,21.4207]
[1727099551730,3.4839,143.54,143.51,3.4844]
[1727099551930,18.71,143.56,143.45,1.3794]
[1727099552138,18.71,143.54,143.45,1.3794]
[1727099552330,1.3724,143.53,143.45,1.3794]
[1727099552536,1.3724,143.53,143.44,1.3286]
[1727099552537,18.71,143.51,143.44,1.3286]
[1727099552727,4.85640348,143.53,143.44,1.3286]
[1727099552931,3.4844,143.52,143.44,1.3286]
[1727099553435,4.85640348,143.53,143.44,1.3286]
[1727099553741,3.4847,143.51,143.48,3.4852]
[1727099554036,4.85640348,143.53,143.48,3.4852]
[1727099554337,3.4845,143.52,143.48,3.4852]
[1727099554931,18.71,143.49,143.4,1.3794]
[1727099555135,18.71,143.46,143.4,1.3794]
[1727099555339,18.71,143.48,143.44,3.486]
[1727099555937,18.71,143.46,143.37,7.24945378]
[1727099556236,18.71,143.46,143.37,1.3225]
[1727099556933,18.71,143.48,143.37,1.3225]
[1727099557139,18.71,143.51,143.39,18.71]
[1727099557430,4.85640348,143.53,143.41,18.71]
[1727099557431,23.56640348,143.53,143.41,18.71]
[1727099557735,1.3724,143.53,143.43,18.71]
[1727099557935,1.3724,143.53,143.44,1.4117]
[1727099558135,1.3724,143.53,143.48,3.4851]
[1727099558839,3.4844,143.52,143.48,3.4851]
[1727099559241,3.4844,143.52,143.49,3.485]
[1727099559740,23.61110225,143.53,143.47,3.4854]
[1727099560035,20.0824,143.53,143.47,3.4854]
[1727099560238,3.4847,143.51,143.48,3.4852]
[1727099560538,1.3724,143.53,143.44,1.4117]
[1727099560741,1.3724,143.53,143.49,3.4848]
[1727099562339,3.47043739,143.52,143.44,1.4117]
[1727099562639,20.0824,143.53,143.44,1.4117]
[1727099563046,3.52761558,143.52,143.44,1.4117]
[1727099563445,20.0824,143.53,143.44,1.4117]
[1727099563637,23.64209116,143.53,143.44,1.4117]
[1727099564050,3.4845,143.52,143.44,1.4117]
[1727099564446,3.4845,143.52,143.48,3.4852]
[1727099566441,18.71,143.51,143.44,1.4117]
[1727099566647,18.71,143.51,143.41,3.48790195]
[1727099566951,3.4852,143.49,143.45,3.4858]
[1727099567149,18.71,143.48,143.41,5.9236817]
[1727099567348,18.71,143.48,143.38,8.1355742]
[1727099567349,18.71,143.48,143.38,7.3861817]
[1727099567645,18.71,143.46,143.4,1.3446]
[1727099567845,4.93209116,143.53,143.4,1.3446]
[1727099567846,18.71,143.51,143.4,1.3446]
[1727099568447,4.93209116,143.53,143.4,1.3446]
[1727099568448,18.71,143.48,143.4,1.3446]
[1727099569047,22.1954,143.48,143.44,3.4862]
[1727099569647,3.4856,143.47,143.43,3.4863]
[1727099570450,18.71,143.48,143.44,3.4862]
[1727099570451,22.1954,143.48,143.44,3.4862]
[1727099570755,22.1954,143.48,143.4,1.3446]
[1727099571251,3.4854,143.48,143.4,1.3446]
[1727099572055,18.71,143.5,143.38,3.5106035]
[1727099572349,18.71,143.48,143.39,2.8279]
[1727099573061,3.4854,143.48,143.39,21.5379]
[1727099573348,3.4856,143.47,143.44,3.4861]
[1727099573655,18.71,143.49,143.39,2.8279]
[1727099573849,1.351,143.48,143.42,3.4866]
[1727099574046,3.4859,143.46,143.39,1.4117]
[1727099574355,18.71,143.52,143.45,3.4859]
[1727099574548,3.4853,143.48,143.39,20.1217]
[1727099574854,3.4853,143.48,143.39,26.04731886]
[1727099575057,3.4853,143.48,143.39,20.1217]
[1727099575252,20.061,143.52,143.45,3.4858]
[1727099575550,20.061,143.52,143.39,20.1217]
[1727099575551,20.061,143.52,143.39,1.4117]
[1727099575759,18.71,143.48,143.39,1.4117]
[1727099576147,3.4857,143.47,143.39,1.4117]
[1727099576557,20.061,143.52,143.39,1.4117]
[1727099576757,3.4854,143.48,143.45,3.486]
[1727099577255,3.4858,143.46,143.39,7.33902898]
[1727099577457,18.71,143.49,143.39,1.4117]
[1727099577950,18.71,143.49,143.45,3.4859]
[1727099577951,22.1952,143.49,143.45,3.4859]
[1727099578155,18.71,143.49,143.39,1.4117]
[1727099578359,18.71,143.49,143.39,7.33924216]
[1727099578657,3.4854,143.48,143.44,3.4861]
[1727099579750,3.4857,143.47,143.44,3.4861]
[1727099580061,3.4857,143.47,143.39,1.4117]
[1727099580062,18.71,143.49,143.39,1.4117]
[1727099580358,3.4855,143.48,143.44,3.486]
[1727099580661,3.4855,143.48,143.39,1.4117]
[1727099580856,3.4855,143.48,143.39,7.3402623]
[1727099581052,18.71,143.46,143.39,1.4117]
[1727099581659,3.55534538,143.45,143.4,3.487]
[1727099582056,18.71,143.46,143.4,3.487]
[1727099582255,1.3908,143.45,143.4,3.487]
[1727099582452,4.89104537,143.45,143.41,3.487]
[1727099582966,3.4865,143.43,143.4,3.4871]
[1727099583561,22.1964,143.44,143.4,3.4871]
[1727099583763,22.1964,143.44,143.41,3.4868]
[1727099584264,1.4001,143.48,143.36,24.64129182]
[1727099584563,2.8058,143.51,143.38,18.71]
[1727099584763,21.5158,143.51,143.39,4.99528201]
[1727099584958,21.5158,143.51,143.39,7.37764769]
[1727099585256,21.5158,143.51,143.39,1.45]
[1727099585452,3.4852,143.49,143.45,3.4858]
[1727099585657,3.4852,143.49,143.41,1.346]
[1727099585958,3.4849,143.5,143.41,1.346]
[1727099586266,1.3908,143.51,143.43,18.71]
[1727099586869,20.1008,143.51,143.42,1.4133]
[1727099587060,3.4851,143.49,143.42,1.4133]
[1727099587252,3.4851,143.49,143.41,1.346]
[1727099587456,20.1008,143.51,143.41,1.346]
[1727099587764,1.3908,143.51,143.41,1.346]
[1727099587963,1.3908,143.51,143.42,18.71]
[1727099588264,3.484,143.54,143.42,18.71]
[1727099588770,3.4842,143.53,143.49,3.4849]
[1727099589062,3.44442473,143.53,143.42,18.71]
[1727099589253,18.71,143.54,143.42,18.71]
[1727099589459,18.71,143.54,143.41,1.346]
[1727099589761,18.71,143.51,143.42,5.92581996]
[1727099589965,18.71,143.49,143.41,1.346]
[1727099590152,18.71,143.46,143.4,5.92836194]
[1727099590665,22.1959,143.46,143.39,1.45]
[1727099591061,3.486,143.45,143.39,1.45]
[1727099591261,18.71,143.46,143.39,1.45]
[1727099591558,3.4861,143.45,143.41,3.4869]
[1727099591975,18.71,143.46,143.41,3.4869]
[1727099592160,3.4862,143.45,143.41,3.4869]
[1727099592361,18.71,143.46,143.4,3.4872]
[1727099592556,3.4865,143.43,143.37,5.93150825]
[1727099592766,18.71,143.44,143.36,1.3343]
[1727099593064,18.71,143.44,143.39,3.4874]
[1727099593261,3.4865,143.43,143.39,3.4874]
[1727099594253,18.71,143.44,143.34,5.92936735]
[1727099594458,18.71,143.42,143.31,15.33709871]
[1727099594756,3.487,143.41,143.32,5.92936735]
[1727099594961,3.487,143.41,143.33,5.92936735]
[1727099595259,3.487,143.41,143.31,20.09629446]
[1727099595564,3.487,143.41,143.36,3.4881]
[1727099595768,22.1968,143.42,143.33,5.93110998]
[1727099596062,22.26060961,143.42,143.34,5.93110998]
[1727099596259,22.26060961,143.42,143.32,6.67953136]
[1727099596453,3.487,143.41,143.37,3.4878]
[1727099596968,2.7662,143.43,143.33,5.92877486]
[1727099597264,2.7662,143.43,143.34,5.92877486]
[1727099597464,2.7662,143.43,143.33,6.67600649]
[1727099597668,2.7662,143.43,143.39,3.4873]
[1727099598259,6.2528,143.43,143.39,3.4873]
[1727099598463,22.17937159,143.42,143.36,3.488]
[1727099598657,3.4873,143.4,143.36,3.488]
[1727099599165,1.4218,143.41,143.35,3.4883]
[1727099599367,3.4876,143.39,143.31,2.7282]
[1727099599559,1.4218,143.41,143.31,8.65659414]
[1727099600065,1.4218,143.41,143.31,2.7282]
[1727099600265,1.4218,143.41,143.31,8.65532218]
[1727099600458,1.4218,143.41,143.32,5.92712218]
[1727099600661,1.4218,143.41,143.38,3.4877]
[1727099601958,1.4218,143.41,143.39,3.4874]
[1727099602164,2.7662,143.43,143.33,18.71]
[1727099602370,2.7662,143.43,143.33,24.63330384]
[1727099602562,3.4868,143.42,143.38,3.4875]
[1727099602761,18.71,143.42,143.38,3.4875]
[1727099602961,3.55408879,143.41,143.36,3.4881]
[1727099603477,18.71,143.39,143.35,3.4883]
[1727099604467,18.71,143.37,143.27,83.7]
[1727099604863,3.4885,143.35,143.31,3.4893]
[1727099605064,18.71,143.37,143.27,83.7]
[1727099605267,22.24475198,143.37,143.27,83.7]
[1727099605574,3.4884,143.36,143.32,3.489]
[1727099605772,22.24475198,143.37,143.32,3.489]
[1727099606175,3.4887,143.34,143.27,83.7]
[1727099606372,18.71,143.31,143.21,3.46024687]
[1727099606671,18.71,143.31,143.2,18.71]
[1727099606672,3.4901,143.29,143.24,3.4909]
[1727099606973,1.4661,143.33,143.2,1.35]
[1727099606974,18.71,143.27,143.2,1.35]
[1727099607168,22.2006,143.27,143.22,3.4915]
[1727099607471,18.71,143.28,143.2,1.35]
[1727099607862,22.2002,143.28,143.23,3.4912]
[1727099608263,22.2002,143.28,143.2,1.35]
[1727099608880,18.71,143.28,143.2,1.35]
[1727099609679,18.71,143.28,143.19,1.4339]
[1727099610772,18.71,143.28,143.22,3.4915]
[1727099610773,3.4905,143.27,143.22,3.4915]
[1727099611578,20.1082,143.28,143.2,3.4919]
[1727099611579,18.71,143.26,143.2,3.4919]
[1727099611767,1.3863,143.25,143.16,1.3287]
[1727099612681,3.4913,143.24,143.2,3.4919]
[1727099612972,1.3863,143.25,143.14,1.4354]
[1727099613177,18.71,143.23,143.14,1.4354]
[1727099614176,22.2016,143.23,143.18,3.4924]
[1727099614371,22.2016,143.23,143.14,1.4354]
[1727099614568,18.71,143.23,143.14,1.4354]
[1727099614775,18.71,143.23,143.2,3.492]
[1727099615482,20.0963,143.25,143.14,1.4354]
[1727099615877,20.0963,143.25,143.21,3.4916]
[1727099616176,20.0963,143.25,143.14,1.4354]
[1727099616885,1.3863,143.25,143.22,3.4914]
[1727099617880,20.0963,143.25,143.21,3.4918]
[1727099618680,20.0963,143.25,143.2,3.492]
[1727099619178,18.71,143.23,143.17,3.4928]
[1727099619379,18.71,143.23,143.14,1.4354]
[1727099620075,3.4919,143.21,143.17,3.4926]
[1727099620273,3.4919,143.21,143.14,1.4354]
[1727099620484,1.3838,143.22,143.14,1.4354]
[1727099620880,4.8756,143.22,143.18,3.4924]
[1727099621295,3.4921,143.2,143.11,2.7724]
[1727099621484,22.26606636,143.21,143.11,2.7724]
[1727099621485,18.71,143.18,143.11,2.7724]
[1727099621783,18.71,143.18,143.11,1.3737]
[1727099621988,18.71,143.18,143.15,3.4931]
[1727099622282,18.71,143.18,143.11,1.3737]
[1727099622681,18.71,143.18,143.15,3.4931]
[1727099622882,18.71,143.18,143.11,1.3737]
[1727099623390,18.71,143.18,143.15,3.4931]
[1727099624088,18.71,143.18,143.16,3.493]
[1727099624284,20.0832,143.21,143.11,1.3737]
[1727099624490,1.3732,143.21,143.11,1.3737]
[1727099624690,1.3838,143.22,143.12,18.71]
[1727099625886,1.3838,143.22,143.2,3.492]
[1727099626796,1.3838,143.22,143.12,18.71]
[1727099627497,1.3838,143.22,143.19,3.4923]
[1727099628490,1.3838,143.22,143.11,1.3737]
[1727099628696,25.6255745,143.21,143.17,3.4927]
[1727099628903,18.71,143.21,143.11,1.3737]
[1727099629405,2.774,143.22,143.11,1.3737]
[1727099629613,2.774,143.22,143.09,18.71]
[1727099629917,2.774,143.22,143.11,18.71]
[1727099630205,2.774,143.22,143.19,3.4922]
[1727099630403,2.774,143.22,143.11,18.71]
[1727099630601,2.774,143.22,143.12,1.28391028]
[1727099631003,2.774,143.22,143.1,1.3243]
[1727099631004,2.774,143.22,143.11,1.28391028]
[1727099631403,20.0963,143.25,143.13,18.71]
[1727099631601,20.0963,143.25,143.15,18.71]
[1727099631915,20.0963,143.25,143.16,2.8197]
[1727099632706,18.71,143.23,143.16,1.3826]
[1727099633016,18.71,143.23,143.2,3.492]
[1727099633214,18.71,143.23,143.16,1.3826]
[1727099633712,18.71,143.23,143.2,3.4921]
[1727099633901,20.0963,143.25,143.16,1.3826]
[1727099634107,1.3863,143.25,143.16,1.3826]
[1727099634304,21.4925,143.28,143.16,4.84410523]
[1727099634504,21.4925,143.28,143.18,18.71]
[1727099634707,2.7825,143.28,143.18,18.71]
[1727099634913,1.3923,143.28,143.18,18.71]
[1727099635117,1.3923,143.28,143.19,3.44543608]
[1727099635614,20.1023,143.28,143.16,1.3826]
[1727099636013,23.5926,143.28,143.23,3.4912]
[1727099636204,20.1023,143.28,143.16,1.3826]
[1727099636518,18.71,143.25,143.21,3.4916]
[1727099639119,18.71,143.25,143.2,3.492]
[1727099639519,3.4911,143.24,143.21,3.4918]
[1727099640511,22.201,143.25,143.21,3.4918]
[1727099640809,18.71,143.25,143.21,3.4918]
[1727099641221,18.71,143.25,143.16,1.3826]
[1727099641222,18.71,143.23,143.16,1.3826]
[1727099641617,3.4919,143.21,143.14,1.4583]
[1727099641817,22.2019,143.21,143.14,1.4583]
[1727099642221,3.4921,143.2,143.16,3.4929]
[1727099642419,11.75,143.19,143.14,1.4583]
[1727099642618,11.75,143.19,143.1,1.3601]
[1727099642814,11.75,143.16,143.1,2.7831]
[1727099643512,11.75,143.14,143.08,83.82]
[1727099643915,11.75,143.12,143.08,3.4949]
[1727099644420,18.79,143.13,143.09,3.4946]
[1727099644617,18.79,143.13,143.06,1.423]
[1727099644827,18.79,143.13,143.11,3.4941]
[1727099645218,18.79,143.13,143.02,3.4874935]
[1727099645419,4.1188,143.15,143.11,3.4941]
[1727099645621,18.79,143.19,143.06,18.79]
[1727099646022,3.4928,143.18,143.13,3.4936]
[1727099646228,22.29681691,143.19,143.06,18.79]
[1727099646518,22.2832,143.16,143.11,3.4941]
[1727099646832,18.79,143.14,143.02,6.29797658]
[1727099647014,18.79,143.14,143.03,1.28454695]
[1727099648226,22.2836,143.14,143.03,1.28454695]
[1727099648627,3.4941,143.12,143.03,1.28454695]
[1727099648820,3.4941,143.12,143.02,21.6689]
[1727099649527,6.2998,143.13,143.02,21.6689]
[1727099649726,2.8059,143.13,143.02,21.6689]
[1727099650925,3.57113652,143.16,143.05,18.79]
[1727099651229,21.637,143.17,143.05,18.79]
[1727099651432,25.17338897,143.17,143.12,3.4939]
[1727099651732,18.79,143.15,143.03,18.79]
[1727099651918,22.2834,143.15,143.03,18.79]
[1727099652124,18.79,143.15,143.03,18.79]
[1727099652416,18.79,143.15,143.04,1.28450674]
[1727099652817,18.79,143.15,143.03,18.79]
[1727099653030,18.79,143.15,143.04,1.28449944]
[1727099653227,18.79,143.15,143.12,3.494]
[1727099653920,107.07681755,143.31,143.11,18.79]
[1727099654118,2.8096,143.25,143.11,18.79]
[1727099654323,2.8096,143.25,143.11,22.30656632]
[1727099654324,18.79,143.23,143.11,22.30656632]
[1727099654522,3.56619387,143.22,143.11,3.51656632]
[1727099654730,18.79,143.22,143.11,3.51656632]
[1727099654928,18.79,143.22,143.1,4.22]
[1727099655135,2.8096,143.25,143.1,4.22]
[1727099655136,21.5996,143.25,143.12,18.79]
[1727099655728,21.5996,143.25,143.19,3.4921]
[1727099656330,21.5996,143.25,143.2,3.4921]
[1727099656529,21.5996,143.25,143.12,18.79]
[1727099656827,21.5996,143.25,143.21,3.4917]
[1727099658317,21.5996,143.25,143.2,3.492]
[1727099658625,2.8096,143.25,143.11,6.9884]
[1727099658924,18.79,143.22,143.14,3.4935]
[1727099659132,22.26443042,143.22,143.11,6.9884]
[1727099659727,22.26443042,143.22,143.17,3.4926]
[1727099660126,18.79,143.2,143.14,3.4934]
[1727099660428,18.79,143.2,143.1,86.6264]
[1727099660429,1.4661,143.19,143.1,86.6264]
[1727099660628,3.4926,143.18,143.13,3.4936]
[1727099660928,4.855,143.18,143.1,86.6264]
[1727099661316,1.3624,143.18,143.14,3.4934]
[1727099661521,1.3624,143.18,143.1,86.6264]
[1727099661926,1.4661,143.19,143.1,105.4164]
[1727099663031,20.1524,143.24,143.12,18.79]
[1727099663236,21.6186,143.24,143.13,1.3487]
[1727099664630,2.8286,143.24,143.15,18.79]
[1727099665020,1.444,143.25,143.15,18.79]
[1727099665221,1.444,143.25,143.16,2.7992]
[1727099666932,1.444,143.25,143.23,3.4913]
[1727099668728,1.444,143.25,143.22,3.4916]
[1727099669134,1.444,143.25,143.16,2.7992]
[1727099669335,4.935,143.25,143.21,3.4916]
[1727099669520,4.935,143.25,143.16,2.7992]
[1727099669521,1.444,143.25,143.16,2.7992]
[1727099669725,18.79,143.28,143.16,2.7992]
[1727099669933,18.79,143.28,143.17,3.57033883]
[1727099670220,18.79,143.28,143.17,22.36033883]
[1727099670424,1.403,143.29,143.19,18.79]
[1727099670834,1.403,143.29,143.26,3.4905]
[1727099671424,2.8289,143.3,143.22,18.79]
[1727099671741,20.1525,143.34,143.22,18.79]
[1727099671928,20.1525,143.34,143.24,18.79]
[1727099672237,23.6412,143.34,143.3,3.4895]
[1727099672424,20.1525,143.34,143.23,2.7882]
[1727099672624,21.5966,143.34,143.23,2.7882]
[1727099673030,3.4891,143.33,143.23,2.7882]
[1727099673236,21.5966,143.34,143.23,2.7882]
[1727099673441,2.8066,143.34,143.23,2.7882]
[1727099673633,2.8066,143.34,143.26,18.79]
[1727099674032,2.8066,143.34,143.3,3.4895]
[1727099674429,2.8066,143.34,143.31,3.4894]
[1727099674642,1.4441,143.34,143.26,18.79]
[1727099675241,1.4441,143.34,143.3,3.4896]
[1727099675638,4.9328,143.34,143.3,3.4896]
[1727099675833,1.4441,143.34,143.23,21.5782]
[1727099676032,3.4892,143.32,143.23,21.5782]
[1727099676233,1.4441,143.34,143.23,21.5782]
[1727099676437,18.79,143.33,143.23,21.5782]
[1727099677238,3.4894,143.31,143.23,21.5782]
[1727099677546,18.79,143.33,143.23,21.5782]
[1727099678133,3.4893,143.32,143.27,3.4902]
[1727099678943,3.4895,143.31,143.27,3.4902]
[1727099679235,18.79,143.31,143.23,2.7882]
[1727099679436,3.4897,143.3,143.23,1.4453]
[1727099679738,18.79,143.33,143.23,1.4453]
[1727099680332,18.79,143.33,143.26,3.4906]
[1727099680642,3.4894,143.31,143.23,1.4453]
[1727099681141,3.4897,143.3,143.23,1.4453]
[1727099682143,18.79,143.33,143.23,1.4453]
[1727099682346,1.4441,143.34,143.27,3.4902]
[1727099682646,1.4441,143.34,143.23,20.2353]
[1727099683044,1.4441,143.34,143.26,18.79]
[1727099683538,22.22934955,143.36,143.24,18.79]
[1727099683849,18.79,143.36,143.25,1.3992]
[1727099684037,3.489,143.33,143.25,1.3992]
[1727099684241,3.49217993,143.35,143.25,1.3992]
[1727099684937,3.4888,143.34,143.3,3.4896]
[1727099685138,20.2544,143.36,143.25,1.3992]
[1727099685345,3.4893,143.32,143.27,3.4902]
[1727099685544,3.4893,143.32,143.25,1.3992]
[1727099685940,3.4893,143.32,143.28,3.4901]
[1727099686641,18.79,143.34,143.27,3.4903]
[1727099686945,18.79,143.34,143.25,1.3992]
[1727099687445,5.03798083,143.36,143.26,18.79]
[1727099687641,1.4644,143.36,143.26,20.2283]
[1727099688140,4.9528,143.36,143.26,20.2283]
[1727099689448,4.9528,143.36,143.32,3.4891]
[1727099689750,4.9528,143.36,143.26,20.2283]
[1727099689948,20.2544,143.36,143.26,1.4383]
[1727099690248,20.2544,143.36,143.25,1.3992]
[1727099690442,3.4894,143.31,143.27,3.4903]
[1727099690643,20.2544,143.36,143.27,3.4903]